bitfinex-derivatives/quotes_BTCF0:USTF0_20250212
["timestamp","ask_amount","ask_price","bid_price","bid_amount"]
[1739402501087,0.13,97919.0,97915.0,0.01256638]
[1739402501268,0.13,97919.0,97910.0,0.12022181]
[1739402501580,0.204223,97918.0,97913.0,0.5650327]
[1739402501770,0.11,97918.0,97913.0,0.37321367]
[1739402501973,0.11,97918.0,97914.0,0.2042293]
[1739402502373,0.11,97918.0,97913.0,0.37321367]
[1739402503685,0.2042261,97917.0,97913.0,0.37321367]
[1739402503984,0.3442261,97917.0,97913.0,0.37321367]
[1739402504881,0.3442261,97917.0,97915.0,0.2042289]
[1739402505683,0.14,97917.0,97915.0,0.2042289]
[1739402506777,0.2042194,97920.0,97917.0,0.2042247]
[1739402507482,0.2042194,97920.0,97918.0,0.2042223]
[1739402507686,0.3608,97925.0,97913.0,0.37321367]
[1739402508980,0.2042125,97923.0,97921.0,0.2042163]
[1739402509488,0.2042146,97922.0,97921.0,0.2042163]
[1739402510990,0.20423,97916.0,97915.0,0.2042272]
[1739402515988,0.2042184,97921.0,97920.0,0.2042123]
[1739402516884,0.2042313,97916.0,97915.0,0.2042271]
[1739402518981,0.2042185,97921.0,97920.0,0.2042111]
[1739402520179,0.2042313,97917.0,97916.0,0.2042253]
[1739402522585,0.51439037,97925.0,97913.0,0.37321367]
[1739402522789,0.2042158,97922.0,97915.0,0.07888305]
[1739402522985,0.2042193,97921.0,97920.0,0.2042177]
[1739402524591,0.51439037,97925.0,97913.0,0.37321367]
[1739402524793,0.2042276,97917.0,97916.0,0.2042269]
[1739402525294,0.51443037,97925.0,97913.0,0.37321367]
[1739402525496,0.2042313,97914.0,97913.0,0.37321367]
[1739402525788,0.2042459,97907.0,97906.0,0.00015318]
[1739402525992,0.5908,97907.0,97897.0,0.00153213]
[1739402526181,0.2042646,97899.0,97898.0,0.2042645]
[1739402526381,0.4042646,97899.0,97898.0,0.2042645]
[1739402526581,0.2042646,97898.0,97897.0,0.00153213]
[1739402526793,0.3542646,97898.0,97897.0,0.00153213]
[1739402527896,0.3552646,97898.0,97897.0,0.00153213]
[1739402528588,0.3552646,97898.0,97897.0,0.20579883]
[1739402533991,0.151,97898.0,97888.0,0.00015318]
[1739402534295,0.2042835,97889.0,97888.0,0.00015318]
[1739402534499,0.4242835,97889.0,97888.0,0.00015318]
[1739402535595,0.4252835,97889.0,97888.0,0.00015318]
[1739402536600,0.221,97889.0,97888.0,0.00015318]
[1739402544108,0.001,97889.0,97888.0,0.00015318]
[1739402547099,0.1539,97889.0,97888.0,0.00015318]
[1739402548600,0.15384818,97889.0,97888.0,0.00015318]
[1739402549102,0.1657381,97889.0,97888.0,0.00015318]
[1739402549304,0.2043043,97879.0,97878.0,0.3608]
[1739402549505,0.3543043,97879.0,97878.0,0.3608]
[1739402550901,0.15,97879.0,97878.0,0.5651064]
[1739402551505,0.15,97879.0,97870.0,0.12025536]
[1739402551809,0.2043161,97874.0,97873.0,0.2043169]
[1739402552110,0.3343161,97874.0,97873.0,0.2043169]
[1739402553614,0.13,97874.0,97873.0,0.2043169]
[1739402554818,0.131,97874.0,97873.0,0.2043169]
[1739402559214,0.132,97874.0,97873.0,0.2043169]
[1739402559720,0.3373148,97874.0,97873.0,0.2043169]
[1739402559913,0.133,97874.0,97867.0,0.2043275]
[1739402560223,0.2043273,97868.0,97867.0,0.2043275]
[1739402561619,0.3243273,97868.0,97867.0,0.2043275]
[1739402562010,0.3253273,97868.0,97867.0,0.2043275]
[1739402563015,0.123,97868.0,97863.0,0.37248942]
[1739402563213,0.2043356,97864.0,97863.0,0.37248942]
[1739402564016,0.2073307,97868.0,97867.0,0.2043294]
[1739402564222,0.3473307,97868.0,97867.0,0.2043294]
[1739402564519,0.2043357,97864.0,97863.0,0.37248942]
[1739402564718,0.2043357,97864.0,97861.0,0.00153239]
[1739402564719,0.2043398,97862.0,97861.0,0.00153239]
[1739402564908,0.2043628,97851.0,97850.0,0.24465885]
[1739402565109,0.3243628,97851.0,97850.0,0.24465885]
[1739402565315,0.3243628,97851.0,97850.0,0.44902375]
[1739402565822,0.3243628,97851.0,97850.0,0.2043649]
[1739402566412,0.3243628,97851.0,97850.0,0.21620538]
[1739402566613,0.3243628,97851.0,97850.0,0.2043649]
[1739402567922,0.12,97851.0,97850.0,0.2043649]
[1739402568627,0.12,97851.0,97850.0,0.21646193]
[1739402571025,0.4808,97851.0,97830.0,0.59584706]
[1739402571224,0.204397,97836.0,97835.0,0.2043925]
[1739402571414,0.434397,97836.0,97835.0,0.2043925]
[1739402572022,0.23,97836.0,97830.0,0.4505964]
[1739402572318,0.2044046,97831.0,97830.0,0.4505984]
[1739402572523,0.3444046,97831.0,97830.0,0.4505984]
[1739402572725,0.14,97831.0,97830.0,0.4505984]
[1739402572922,0.7052046,97831.0,97830.0,0.4505984]
[1739402574319,0.5008,97831.0,97830.0,0.20593955]
[1739402574516,0.14,97831.0,97830.0,0.20593955]
[1739402575024,0.141,97831.0,97830.0,0.20593955]
[1739402577327,0.00015326,97840.0,97839.0,0.2043879]
[1739402577626,0.08015326,97840.0,97839.0,0.2043879]
[1739402578023,0.00015326,97840.0,97839.0,0.2043879]
[1739402578231,0.00015326,97840.0,97839.0,0.2795879]
[1739402578729,0.0799,97867.0,97848.0,0.12025536]
[1739402579025,0.0799,97867.0,97846.0,0.051093]
[1739402579026,0.2699,97867.0,97859.0,0.3608]
[1739402579628,0.2699,97867.0,97866.0,0.2043315]
[1739402580627,0.2699,97867.0,97866.0,0.21618156]
[1739402581926,0.2699,97867.0,97866.0,0.57698156]
[1739402582732,0.2729,97867.0,97866.0,0.57698156]
[1739402583133,0.2709,97867.0,97866.0,0.57698156]
[1739402584529,0.191,97867.0,97866.0,0.57698156]
[1739402584731,0.0734,97878.0,97866.0,0.57698156]
[1739402584732,0.00052001,97882.0,97866.0,0.37265006]
[1739402584925,0.01,97882.0,97881.0,0.5651002]
[1739402585532,0.2042437,97909.0,97895.0,0.204271]
[1739402585723,0.16307036,97896.0,97895.0,0.204271]
[1739402585922,0.01,97896.0,97895.0,0.204271]
[1739402587032,0.017,97896.0,97895.0,0.204271]
[1739402587627,0.017,97896.0,97895.0,0.565071]
[1739402588334,0.017,97896.0,97895.0,0.57705413]
[1739402589036,0.003,97896.0,97895.0,0.57705413]
[1739402589433,0.15307036,97897.0,97896.0,0.2042689]
[1739402590030,0.00015326,97905.0,97902.0,0.2042558]
[1739402590337,0.20440376,97905.0,97902.0,0.2042558]
[1739402591037,0.20440376,97905.0,97903.0,0.2042543]
[1739402591238,0.2782522,97904.0,97903.0,0.2042543]
[1739402592638,0.2792522,97904.0,97903.0,0.2042543]
[1739402593239,0.2802522,97904.0,97903.0,0.2042543]
[1739402594031,0.2042657,97899.0,97898.0,0.2042641]
[1739402595940,0.2062657,97899.0,97898.0,0.2042641]
[1739402597944,0.2042689,97896.0,97895.0,0.3608]
[1739402599241,0.002,97899.0,97897.0,0.2042663]
[1739402599435,0.074,97904.0,97895.0,0.37273329]
[1739402599631,0.001,97896.0,97895.0,0.37273329]
[1739402600136,0.001,97896.0,97895.0,0.57700429]
[1739402600840,0.00015326,97905.0,97904.0,0.2042522]
[1739402601142,0.00015326,97905.0,97904.0,0.5650522]
[1739402603645,0.00315326,97905.0,97904.0,0.5650522]
[1739402606244,0.00015326,97905.0,97904.0,0.5650522]
[1739402607550,0.00115326,97905.0,97904.0,0.5650522]
[1739402607960,0.00015326,97905.0,97904.0,0.5650522]
[1739402608255,0.00215326,97905.0,97904.0,0.5650522]
[1739402608460,0.00215326,97905.0,97904.0,0.3608]
[1739402608662,0.2042685,97897.0,97895.0,0.49418865]
[1739402608953,0.2213,97896.0,97895.0,0.37273329]
[1739402610856,0.2223,97896.0,97895.0,0.37273329]
[1739402615869,0.2423,97896.0,97895.0,0.37273329]
[1739402616563,0.2413,97896.0,97895.0,0.37273329]
[1739402616959,0.4455689,97896.0,97895.0,0.37273329]
[1739402617361,0.2423,97896.0,97895.0,0.57700429]
[1739402620266,0.2413,97896.0,97895.0,0.57700429]
[1739402620860,0.2413,97896.0,97895.0,0.37273329]
[1739402621062,0.2423,97896.0,97895.0,0.37273329]
[1739402622462,0.2413,97896.0,97895.0,0.37273329]
[1739402622668,0.2433,97896.0,97895.0,0.37273329]
[1739402624271,0.2413,97896.0,97895.0,0.37273329]
[1739402624470,0.2433,97896.0,97895.0,0.37273329]
[1739402625774,0.2413,97896.0,97895.0,0.37273329]
[1739402625968,0.2433,97896.0,97895.0,0.37273329]
[1739402626875,0.2413,97896.0,97895.0,0.37273329]
[1739402627070,0.2433,97896.0,97895.0,0.37273329]
[1739402630469,0.2443,97896.0,97895.0,0.37273329]
[1739402630977,0.2443,97896.0,97895.0,0.3608]
[1739402631174,0.2042872,97888.0,97886.0,0.12040862]
[1739402631372,0.2042872,97888.0,97886.0,0.00015326]
[1739402631573,0.2042872,97888.0,97886.0,0.01176541]
[1739402631872,0.2042872,97888.0,97886.0,0.00015326]
[1739402632473,0.2042872,97888.0,97886.0,0.01170883]
[1739402633766,0.5650725,97895.0,97886.0,0.01170883]
[1739402633972,0.7750725,97895.0,97886.0,0.01170883]
[1739402634272,0.5708,97895.0,97886.0,0.01170883]
[1739402636782,0.21,97895.0,97887.0,0.2042863]
[1739402637081,0.36307036,97895.0,97887.0,0.2042863]
[1739402637282,0.36307036,97895.0,97886.0,0.01170883]
[1739402637977,0.2042832,97890.0,97886.0,0.01170883]
[1739402638881,0.15307036,97895.0,97886.0,0.01170883]
[1739402639082,0.33307036,97895.0,97886.0,0.21599703]
[1739402639676,0.33407036,97895.0,97892.0,0.2042757]
[1739402639881,0.33407036,97895.0,97894.0,0.2042729]
[1739402640082,0.18,97895.0,97894.0,0.2042729]
[1739402640782,0.181,97895.0,97894.0,0.2042729]
[1739402640984,0.001,97895.0,97894.0,0.2042729]
[1739402642781,0.2213,97896.0,97894.0,0.2042729]
[1739402643084,0.003,97895.0,97894.0,0.2042729]
[1739402643880,0.0749,97896.0,97894.0,0.2042729]
[1739402644080,0.0779,97896.0,97894.0,0.2042729]
[1739402644481,0.0749,97896.0,97894.0,0.2042729]
[1739402647185,0.0753,97895.0,97886.0,0.01170883]
[1739402647480,0.0743,97895.0,97886.0,0.01170883]
[1739402647680,0.0743,97895.0,97890.0,0.3608]
[1739402648085,0.0743,97895.0,97890.0,0.5650802]
[1739402648885,0.0743,97895.0,97892.0,0.204277]
[1739402649086,0.0743,97895.0,97890.0,0.3608]
[1739402649280,0.0743,97895.0,97891.0,0.2042782]
[1739402650288,0.0753,97895.0,97890.0,0.3608]
[1739402650491,0.0753,97895.0,97892.0,0.2042758]
[1739402650790,0.22737036,97895.0,97893.0,0.2042741]
[1739402650986,0.22837036,97895.0,97893.0,0.2042741]
[1739402651391,0.22737036,97895.0,97893.0,0.2042741]
[1739402651591,0.22837036,97895.0,97893.0,0.2042741]
[1739402653192,0.22937036,97895.0,97893.0,0.2042741]
[1739402654193,0.22737036,97895.0,97893.0,0.2042741]
[1739402654385,0.22937036,97895.0,97893.0,0.2042741]
[1739402654892,0.24068137,97895.0,97893.0,0.2042741]
[1739402655294,0.24068137,97895.0,97890.0,0.3608]
[1739402656890,0.22837036,97895.0,97892.0,0.2042768]
[1739402657200,0.15307036,97894.0,97892.0,0.2042768]
[1739402659596,0.15407036,97894.0,97892.0,0.2042768]
[1739402660197,0.15407036,97894.0,97893.0,0.2042751]
[1739402661799,0.15407036,97894.0,97890.0,0.3608]
[1739402662099,0.2042779,97892.0,97890.0,0.3608]
[1739402662299,0.0715,97891.0,97886.0,0.00015326]
[1739402662504,0.3608,97887.0,97873.0,0.2043157]
[1739402662692,0.2042995,97882.0,97877.0,0.0789137]
[1739402662998,0.2042995,97882.0,97873.0,0.01147153]
[1739402662999,0.18,97882.0,97873.0,0.01147153]
[1739402663298,0.18,97882.0,97881.0,0.2043001]
[1739402664590,0.19127412,97882.0,97881.0,0.2043001]
[1739402666702,0.19127412,97882.0,97881.0,0.2053001]
[1739402669006,0.39557212,97882.0,97881.0,0.001]
[1739402673010,0.19127412,97882.0,97872.0,0.00015326]
[1739402673310,0.2043065,97878.0,97875.0,0.2043122]
[1739402673509,0.0735,97877.0,97875.0,0.2043122]
[1739402673714,0.3466,97877.0,97875.0,0.2043122]
[1739402673909,0.5509099,97877.0,97875.0,0.2043122]
[1739402674312,0.5509099,97877.0,97872.0,0.00015326]
[1739402674313,0.3466,97877.0,97872.0,0.00215326]
[1739402674614,0.2043119,97876.0,97872.0,0.00215326]
[1739402674810,0.4343119,97876.0,97875.0,0.002]
[1739402675112,0.23,97876.0,97875.0,0.002]
[1739402676413,0.23,97876.0,97872.0,0.00015326]
[1739402677013,0.204315,97874.0,97872.0,0.00015326]
[1739402677220,0.414315,97874.0,97872.0,0.00015326]
[1739402679003,0.204315,97874.0,97872.0,0.00015326]
[1739402679207,0.204315,97874.0,97872.0,0.00115326]
[1739402679811,0.1466,97877.0,97872.0,0.00115326]
[1739402680317,0.1466,97877.0,97875.0,0.204312]
[1739402682909,0.1466,97877.0,97875.0,0.205312]
[1739402685109,0.1466,97877.0,97876.0,0.2043105]
[1739402685419,0.2043168,97873.0,97872.0,1e-08]
[1739402685622,0.4343168,97873.0,97872.0,1e-08]
[1739402687117,0.4353168,97873.0,97872.0,1e-08]
[1739402687414,0.231,97873.0,97830.0,0.07894664]
[1739402687615,0.2043561,97855.0,97841.0,0.3608]
[1739402687920,0.4043561,97855.0,97845.0,0.01134667]
[1739402688118,0.4043561,97855.0,97841.0,0.4248]
[1739402688416,0.4733561,97855.0,97841.0,0.4248]
[1739402689418,0.4733561,97855.0,97818.0,0.3608]
[1739402689419,0.0510893,97854.0,97818.0,0.3608]
[1739402689606,0.2044187,97825.0,97818.0,0.3608]
[1739402689806,0.4044174,97825.0,97818.0,0.3608]
[1739402690523,0.2,97825.0,97818.0,0.3608]
[1739402690817,0.2044296,97819.0,97818.0,0.37222002]
[1739402691016,0.3244296,97819.0,97818.0,0.37222002]
[1739402692714,0.2044296,97819.0,97818.0,0.37222002]
[1739402693618,0.3244296,97819.0,97818.0,0.37222002]
[1739402694614,0.12,97819.0,97800.0,0.4608]
[1739402694824,0.12,97819.0,97809.0,0.12043189]
[1739402695115,0.2044472,97811.0,97809.0,0.12043189]
[1739402695319,0.03,97811.0,97804.0,0.20446]
[1739402695623,0.2044484,97810.0,97801.0,0.2099]
[1739402695817,0.2344484,97810.0,97801.0,0.2099]
[1739402696122,0.204454,97808.0,97801.0,0.42558628]
[1739402696320,0.214454,97808.0,97801.0,0.42558628]
[1739402696821,0.214454,97808.0,97800.0,0.58243189]
[1739402696822,0.2044652,97802.0,97800.0,0.1012]
[1739402697021,0.23,97802.0,97781.0,0.3608]
[1739402697322,0.204507,97782.0,97781.0,0.3608]
[1739402697523,0.324507,97782.0,97781.0,0.3608]
[1739402700925,0.12,97782.0,97781.0,0.3608]
[1739402704116,0.324507,97782.0,97781.0,0.3608]
[1739402704318,0.12,97782.0,97776.0,0.01138754]
[1739402704524,0.12,97782.0,97776.0,0.01151855]
[1739402704724,0.2045272,97773.0,97762.0,0.072]
[1739402705427,0.2045144,97779.0,97762.0,0.072]
[1739402705626,0.15,97779.0,97769.0,0.12043189]
[1739402705818,0.15,97779.0,97773.0,0.2045249]
[1739402707026,0.204523,97775.0,97773.0,0.01148349]
[1739402707228,0.214523,97775.0,97769.0,0.12043189]
[1739402707826,0.01,97775.0,97770.0,0.2045315]
[1739402708031,0.01,97775.0,97773.0,0.2045253]
[1739402708223,0.001,97779.0,97778.0,0.2045154]
[1739402709439,0.2044623,97804.0,97778.0,0.3608]
[1739402709729,0.0736,97809.0,97808.0,0.2044526]
[1739402709929,0.2036,97809.0,97808.0,0.5652526]
[1739402710322,0.13,97809.0,97808.0,0.5652526]
[1739402710722,0.13,97809.0,97808.0,0.57644129]
[1739402711028,0.00083823,97816.0,97815.0,0.204438]
[1739402711328,0.03083823,97816.0,97815.0,0.204438]
[1739402711529,0.03083823,97816.0,97808.0,0.37198869]
[1739402711735,0.2044402,97814.0,97808.0,0.37198869]
[1739402711929,0.4044402,97814.0,97808.0,0.37198869]
[1739402712435,0.2,97814.0,97809.0,0.2044499]
[1739402713130,0.201,97814.0,97809.0,0.2044499]
[1739402713634,0.201,97814.0,97808.0,0.37798869]
[1739402713829,0.2,97814.0,97809.0,0.001]
[1739402715836,0.2,97814.0,97808.0,0.37198869]
[1739402716135,0.2,97814.0,97808.0,0.37698869]
[1739402716337,0.2,97814.0,97808.0,0.37198869]
[1739402717033,0.2,97814.0,97808.0,0.37498869]
[1739402717637,0.2,97814.0,97809.0,0.2044506]
[1739402719036,0.2,97814.0,97810.0,0.2044482]
[1739402719540,0.2,97814.0,97811.0,0.2044463]
[1739402719939,0.4044409,97814.0,97809.0,0.001]
[1739402720333,0.4044409,97814.0,97808.0,0.37198869]
[1739402720334,0.4044409,97814.0,97810.0,0.001]
[1739402720832,0.4044409,97814.0,97808.0,0.21958697]
[1739402721035,0.2054409,97814.0,97808.0,0.21958697]
[1739402722038,0.00015334,97818.0,97813.0,0.3608]
[1739402722338,0.15307036,97820.0,97819.0,0.2044297]
[1739402722539,0.18349574,97830.0,97819.0,0.3608]
[1739402722837,0.18349574,97830.0,97829.0,0.5652088]
[1739402723233,0.073,97847.0,97846.0,0.2043733]
[1739402725041,0.073,97847.0,97846.0,0.21554961]
[1739402726942,0.073,97847.0,97846.0,0.01117631]
[1739402727140,0.08,97847.0,97846.0,0.001]
[1739402727539,0.08,97847.0,97846.0,0.01231808]
[1739402727740,0.08,97847.0,97846.0,0.001]
[1739402729249,0.08,97847.0,97846.0,0.01187155]
[1739402734645,0.07229928,97847.0,97846.0,0.01187155]
[1739402737747,0.39667048,97847.0,97846.0,0.001]
[1739402741560,0.19229928,97847.0,97846.0,0.001]
[1739402743759,0.18929928,97847.0,97841.0,0.2043828]
[1739402744148,0.18929928,97847.0,97842.0,0.2043816]
[1739402745051,0.2043758,97845.0,97838.0,0.3608]
[1739402745357,0.2043758,97845.0,97838.0,0.37192664]
[1739402745657,0.2043758,97845.0,97839.0,0.2043871]
[1739402746562,0.06629928,97847.0,97838.0,0.37192664]
[1739402746767,0.07629928,97847.0,97838.0,0.37192664]
[1739402747267,0.07529928,97847.0,97846.0,0.2043732]
[1739402748266,0.07529928,97847.0,97846.0,0.5651732]
[1739402749664,0.003,97847.0,97846.0,0.3608]
[1739402749970,0.003,97847.0,97846.0,0.5651732]
[1739402752767,0.003,97847.0,97846.0,0.3608]
[1739402756074,0.003,97847.0,97846.0,0.5651733]
[1739402759669,0.003,97847.0,97846.0,0.2043733]
[1739402760169,0.003,97847.0,97842.0,0.2043815]
[1739402760369,0.003,97847.0,97843.0,0.2043795]
[1739402761481,0.003,97847.0,97846.0,0.2043734]
[1739402761680,0.001,97847.0,97846.0,0.2043734]
[1739402762280,0.002,97847.0,97846.0,0.2043734]
[1739402762690,0.0604,97849.0,97846.0,0.2043734]
[1739402762981,0.003,97847.0,97846.0,0.2043734]
[1739402764677,0.00015334,97856.0,97841.0,0.3608]
[1739402764678,0.003,97849.0,97848.0,0.2554611]
[1739402765282,0.00015334,97856.0,97855.0,0.2043546]
[1739402765483,0.00015334,97856.0,97855.0,0.5651546]
[1739402767483,0.00515334,97856.0,97855.0,0.5651546]
[1739402768481,0.11624499,97862.0,97855.0,0.3608]
[1739402768673,0.11624499,97862.0,97861.0,0.204342]
[1739402769381,0.00153328,97871.0,97870.0,0.2043232]
[1739402769677,0.00153328,97871.0,97870.0,0.5651232]
[1739402770983,0.00153328,97871.0,97870.0,0.3608]
[1739402771578,0.00853328,97871.0,97870.0,0.3618]
[1739402771774,0.00853328,97871.0,97870.0,0.37293111]
[1739402772081,0.00853328,97871.0,97870.0,0.57725431]
[1739402773877,0.00853328,97871.0,97870.0,0.21645431]
[1739402780278,0.00853328,97871.0,97870.0,0.01213111]
[1739402781284,0.21285438,97871.0,97870.0,0.001]
[1739402781477,0.2043399,97862.0,97861.0,0.00015334]
[1739402781684,0.7651399,97862.0,97861.0,0.00015334]
[1739402783187,0.7721399,97862.0,97861.0,0.00115334]
[1739402783389,0.5678,97862.0,97861.0,0.00115334]
[1739402784488,0.7721399,97862.0,97861.0,0.00115334]
[1739402788393,0.2043792,97844.0,97840.0,0.12043189]
[1739402788592,0.2043792,97844.0,97838.0,0.2043892]
[1739402788792,0.2043792,97844.0,97837.0,0.0629]
[1739402789891,0.12,97844.0,97837.0,0.0107335]
[1739402790097,0.3608,97838.0,97831.0,0.00015334]
[1739402790297,0.37164792,97838.0,97831.0,0.01078005]
[1739402791287,0.37164792,97838.0,97832.0,0.2044026]
[1739402793290,0.37164792,97838.0,97832.0,0.2064026]
[1739402793491,0.37164792,97838.0,97834.0,0.2043983]
[1739402793492,0.01084792,97838.0,97834.0,0.2043983]
[1739402793688,0.0621,97843.0,97834.0,0.2043983]
[1739402793891,0.1921,97843.0,97834.0,0.2043983]
[1739402794899,0.1921,97843.0,97835.0,0.2043959]
[1739402795400,0.20291153,97843.0,97835.0,0.2043959]
[1739402795799,0.20291153,97843.0,97834.0,0.001]
[1739402796401,0.20291153,97843.0,97836.0,0.204394]
[1739402797700,0.20291153,97843.0,97837.0,0.2043902]
[1739402800193,0.07291153,97843.0,97842.0,0.2043818]
[1739402800502,0.01081153,97843.0,97842.0,0.2043818]
[1739402800806,0.0603,97847.0,97838.0,0.3608]
[1739402800987,0.0603,97847.0,97846.0,0.2043734]
[1739402802805,0.0623,97847.0,97846.0,0.2043734]
[1739402804598,0.0623,97847.0,97846.0,0.5651734]
[1739402806008,0.002,97847.0,97846.0,0.5651734]
[1739402811608,0.002,97847.0,97846.0,0.3608]
[1739402812001,0.2063713,97847.0,97846.0,0.3608]
[1739402812804,0.2063713,97847.0,97838.0,0.5663895]
[1739402813000,0.0603,97846.0,97839.0,0.204388]
[1739402813197,0.0603,97846.0,97838.0,0.37169037]
[1739402814602,0.0603,97846.0,97843.0,0.2043796]
[1739402816011,0.0613,97846.0,97843.0,0.2043796]
[1739402817407,0.0613,97846.0,97844.0,0.2043775]
[1739402818105,0.0613,97846.0,97845.0,0.2043755]
[1739402818710,0.0623,97846.0,97845.0,0.2043755]
[1739402819113,0.0603,97846.0,97845.0,0.2043755]
[1739402819313,0.0623,97846.0,97845.0,0.2043755]
[1739402821710,0.0603,97846.0,97845.0,0.2043755]
[1739402822002,0.0603,97846.0,97845.0,0.2053755]
[1739402822511,0.0603,97846.0,97845.0,0.2063755]
[1739402822813,0.1255,97857.0,97849.0,0.2043672]
[1739402823006,0.1255,97857.0,97849.0,0.5651672]
[1739402824610,0.1255,97857.0,97849.0,0.5661672]
[1739402825013,0.1255,97857.0,97849.0,0.5681672]
[1739402825216,0.0612,97864.0,97863.0,0.2043379]
[1739402826214,0.0612,97864.0,97854.0,0.1202958]
[1739402826416,0.204342,97862.0,97854.0,0.12044914]
[1739402826617,0.19,97862.0,97854.0,0.12044914]
[1739402826812,0.3943418,97862.0,97854.0,0.12044914]
[1739402827015,0.3943418,97862.0,97855.0,0.2043545]
[1739402827315,0.3943418,97862.0,97855.0,0.21551846]
[1739402828624,0.3943418,97862.0,97855.0,0.21651846]
[1739402829322,0.2043418,97862.0,97855.0,0.21651846]
[1739402829617,0.2043418,97862.0,97855.0,0.01216396]
[1739402829826,0.0612,97864.0,97858.0,0.2043464]
[1739402831425,0.0612,97864.0,97860.0,0.2043441]
[1739402832123,0.2512,97864.0,97855.0,0.01116396]
[1739402832427,0.2512,97864.0,97858.0,0.001]
[1739402832626,0.2043448,97860.0,97858.0,0.001]
[1739402834032,0.2043448,97860.0,97854.0,0.12044914]
[1739402834432,0.13,97860.0,97854.0,0.00015334]
[1739402834627,0.2043546,97855.0,97854.0,0.00015334]
[1739402834823,0.3343546,97855.0,97854.0,0.00015334]
[1739402835331,0.13,97855.0,97854.0,0.00015334]
[1739402835737,0.134,97855.0,97854.0,0.00015334]
[1739402837225,0.131,97855.0,97854.0,0.00015334]
[1739402837426,0.3353546,97855.0,97854.0,0.00015334]
[1739402837926,0.3363546,97855.0,97854.0,0.00015334]
[1739402838943,0.3373546,97855.0,97854.0,0.00015334]
[1739402840840,0.3343546,97855.0,97854.0,0.00015334]
[1739402841132,0.3353546,97855.0,97854.0,0.00015334]
[1739402841535,0.131,97855.0,97854.0,0.00015334]
[1739402841735,0.131,97855.0,97854.0,0.20451004]
[1739402841931,0.13,97855.0,97854.0,0.20451004]
[1739402842131,0.131,97855.0,97854.0,0.20451004]
[1739402844332,0.13,97855.0,97854.0,0.20551004]
[1739402844731,0.13,97855.0,97854.0,0.20451004]
[1739402844939,0.3608,97858.0,97854.0,0.20451004]
[1739402846630,0.3608,97858.0,97854.0,0.00015334]
[1739402846832,0.2043446,97860.0,97854.0,0.00015334]
[1739402847632,0.422,97864.0,97854.0,0.00015334]
[1739402848139,0.2043528,97856.0,97854.0,0.00015334]
[1739402850144,0.5651528,97856.0,97854.0,0.00015334]
[1739402850741,0.5671528,97856.0,97854.0,0.00015334]
[1739402851129,0.7671528,97856.0,97854.0,0.00015334]
[1739402851331,0.7691528,97856.0,97854.0,0.00015334]
[1739402851535,0.7691528,97856.0,97854.0,1e-08]
[1739402852844,0.2183,97855.0,97854.0,1e-08]
[1739402853041,0.4383,97855.0,97854.0,1e-08]
[1739402853236,0.7383,97855.0,97854.0,1e-08]
[1739402853745,0.78799185,97855.0,97854.0,1e-08]
[1739402854445,0.2043989,97834.0,97833.0,0.2044004]
[1739402854644,0.7151989,97834.0,97833.0,0.2044004]
[1739402856238,0.2044104,97829.0,97826.0,0.01056038]
[1739402856442,0.2444104,97829.0,97824.0,0.36095334]
[1739402856735,0.2444104,97829.0,97828.0,0.204411]
[1739402857547,0.2044173,97825.0,97824.0,0.36095334]
[1739402857742,0.2424173,97825.0,97824.0,0.20457274]
[1739402857952,0.25321455,97825.0,97824.0,0.00015334]
[1739402858348,0.31851455,97825.0,97824.0,0.00015334]
[1739402859343,0.1053,97825.0,97824.0,0.20457274]
[1739402859846,0.1013,97825.0,97824.0,0.21508897]
[1739402860542,0.1013,97825.0,97824.0,0.22008897]
[1739402862448,0.036,97825.0,97824.0,0.22008897]
[1739402865048,0.036,97825.0,97824.0,0.21508897]
[1739402865256,0.3608,97836.0,97824.0,0.01066957]
[1739402865449,0.4008,97836.0,97832.0,0.2044022]
[1739402865765,0.4008,97836.0,97830.0,0.204406]
[1739402866454,0.4008,97836.0,97832.0,0.2044017]
[1739402866654,0.4008,97836.0,97826.0,0.12041195]
[1739402867748,0.4008,97836.0,97830.0,0.2044048]
[1739402867943,0.04,97836.0,97826.0,0.32482645]
[1739402868149,0.04,97836.0,97826.0,0.2044145]
[1739402868358,0.04,97836.0,97826.0,0.2064145]
[1739402868748,0.04,97836.0,97826.0,0.2044145]
[1739402869347,0.244395,97836.0,97826.0,0.2044145]
[1739402870254,0.3608,97830.0,97824.0,0.00015334]
[1739402870461,0.0511042,97826.0,97806.0,0.0015335]
[1739402870757,0.3608,97817.0,97806.0,0.0015335]
[1739402870958,0.2044431,97813.0,97810.0,0.12041195]
[1739402871159,0.2444431,97813.0,97806.0,0.3623335]
[1739402872560,0.2444431,97813.0,97810.0,0.002]
[1739402873152,0.04,97813.0,97811.0,0.2044456]
[1739402873352,0.04,97813.0,97810.0,0.002]
[1739402873959,0.2444425,97813.0,97810.0,0.002]
[1739402874147,0.2444425,97813.0,97806.0,0.3628]
[1739402874551,0.2444425,97813.0,97806.0,0.3608]
[1739402874747,0.2444425,97813.0,97810.0,0.002]
[1739402875259,0.2444425,97813.0,97806.0,0.5672567]
[1739402875853,0.2444425,97813.0,97806.0,0.5652567]
[1739402876053,0.2444425,97813.0,97810.0,0.002]
[1739402876254,0.2044466,97811.0,97810.0,0.002]
[1739402876465,0.2144466,97811.0,97810.0,0.002]
[1739402877364,0.01,97811.0,97806.0,0.3608]
[1739402877556,0.2044549,97807.0,97806.0,0.3638]
[1739402877756,0.3244549,97807.0,97806.0,0.3638]
[1739402877964,0.2044633,97803.0,97802.0,0.01078431]
[1739402878156,0.2044633,97803.0,97800.0,0.12056529]
[1739402878157,0.2024633,97803.0,97800.0,0.00015334]
[1739402878357,0.2044674,97801.0,97800.0,0.00015334]
[1739402878557,0.2014674,97801.0,97800.0,0.00015334]
[1739402878755,0.2014674,97801.0,97800.0,0.01081126]
[1739402878955,0.2014674,97801.0,97800.0,0.00015334]
[1739402879158,0.3184674,97801.0,97800.0,0.00015334]
[1739402879752,0.6792674,97801.0,97800.0,0.00015334]
[1739402882260,1.0400674,97801.0,97800.0,1e-08]
[1739402884461,1.0470674,97801.0,97800.0,1e-08]
[1739402884964,1.0420674,97801.0,97800.0,1e-08]
[1739402885565,1.0470674,97801.0,97800.0,1e-08]
[1739402886859,1.0400674,97801.0,97800.0,1e-08]
[1739402887054,1.0470674,97801.0,97800.0,1e-08]